[Event "Stare Mesto Open-A 2022"]
[Site "Stare Mesto"]
[Date "2022.08.12"]
[Round "1.1"]
[White "Haba, Petr"]
[Black "Machacek, Jan"]
[Result "1-0"]
[ECO "B90"]
[WhiteElo "2453"]
[BlackElo "1985"]
[Annotator "TA"]
[PlyCount "37"]
[EventDate "2022.08.12"]
[EventType "swiss"]
[EventCountry "CZE"]
[SourceTitle "playchess.com"]
[Source "ChessBase"]
[SourceQuality "1"]
[TimeControl "40/5400+30:1800+30"]

{[%evp 13,37,0,74,76,80,65,62,51,137,137,227,212,275,179,160,168,420,421,418,417,407,411,407,406,398,389]} 1. e4 c5 {[%emt 0:00:22]} 2. Nf3 {[%emt 0:00:38]} d6 {[%emt 0:00:22]} 3. d4 {[%emt 0:00:09]} cxd4 {[%emt 0:00:30]} 4. Nxd4 {[%emt 0:00:30]} Nf6 {[%emt 0:00:00]} 5. Nc3 {[%emt 0:00:00][%cal Bb1c3,Bc3d5,Bd5b4][%mdl 32]} a6 {[%emt 0:02:27]} 6. Be3 {[%emt 0:00:00]} e5 {[%emt 0:00:06]} 7. Nf3 {[%emt 0:01:23]} b5 {[%emt 0:00:46]} (7... Be7 $11 {remains equal.}) 8. a4 $16 {B90: Sicilian Najdorf: Unusual White 6th moves, 6 Be3 Ng4 and 6 Be3 e5.} b4 {[%emt 0:11:09]} 9. Nd5 {[%emt 0:02:46]} Nbd7 {[%emt 0:00:08]} 10. Nxb4 {[%emt 0:04:39] [#] 0x0.002363f69243dp-1022s more active pieces. The black rooks are badly placed. White is slightly better.} Qa5 $146 {[%emt 0:05:12]} (10... Bb7 $14) ({Predecessor:} 10... Bb7 11. Bc4 Nxe4 12. O-O Be7 13. Bd5 Qc8 14. Bxb7 Qxb7 15. Nd5 Ndf6 16. Nb6 Rd8 {½-½ (51) Vuelban,V (2289)-Lajthajm,B (2427) Backi Petrovac 2017}) 11. c3 {[%emt 0:01:47]} Nxe4 {[%emt 0:05:36] [#]} (11... Qc7 $16) 12. Bc4 $1 $18 {[%emt 0:00:44]} Ndf6 {[%emt 0:09:20]} 13. Ng5 {[%emt 0:21:51]} Nxg5 {[%emt 0:04:36]} 14. Bxg5 {[%emt 0:00:05]} Be6 $2 {[%emt 0:00:06]} (14... Qc7 15. Qd3 a5) 15. Bxe6 {[%emt 0:02:16]} fxe6 {[%emt 0:01:04]} 16. Bxf6 {[%emt 0:00:09] White is winning.} gxf6 17. Qh5+ {[%emt 0:00:13]} ({Not} 17. Qf3 Qd8 $16) 17... Kd7 {[%emt 0:00:12]} 18. Qf7+ {[%emt 0:00:07]} ({And not} 18. Qf3 d5 19. O-O Qd8 $11) 18... Be7 {[%emt 0:00:07] [#]} 19. Qxe7+ $3 {[%emt 0:00:11][%mdl 512] Black did not feel at home in the position after the opening.  Weighted Error Value: White=0.08 (flawless) /Black=0.70} 1-0

[Event "Stare Mesto Open-A 2022"]
[Site "Stare Mesto"]
[Date "2022.08.12"]
[Round "1.2"]
[White "Krizek, Frantisek"]
[Black "Cerveny, Martin"]
[Result "0-1"]
[ECO "A16"]
[WhiteElo "1970"]
[BlackElo "2396"]
[Annotator "TA"]
[PlyCount "90"]
[EventDate "2022.08.12"]
[EventType "swiss"]
[EventCountry "CZE"]
[SourceTitle "playchess.com"]
[Source "ChessBase"]
[SourceQuality "1"]
[TimeControl "40/5400+30:1800+30"]

{[%evp 11,90,10,12,5,13,23,16,0,3,5,40,20,39,0,1,0,7,-3,0,-15,0,-28,0,-38,-28,-43,0,0,0,0,11,9,37,11,45,0,29,-199,-40,-76,-75,-75,-70,-92,-32,-44,-39,-38,102,-25,-22,-63,-56,-106,-106,-113,-59,-68,-61,-60,-57,-52,0,-108,-101,-101,-104,-99,-86,-134,-125,-133,-134,-172,-154,-170,-141,-193,-191,-163,-166]} 1. c4 {[%emt 0:00:02]} Nf6 {[%emt 0:00:28]} 2. Nc3 {[%emt 0:00:05]} e5 {[%emt 0:01:37]} 3. Nf3 {[%emt 0:00:29]} d6 {[%emt 0:01:22]} 4. d4 {[%emt 0:01:20]} exd4 {[%emt 0:01:51]} 5. Nxd4 {[%emt 0:00:04]} g6 {[%emt 0:01:19]} 6. Bg5 {[%emt 0:05:25]} Bg7 {[%emt 0:01:12]} 7. e3 {[%emt 0:01:42] A54: Old Indian Defence with Nf3, but without e4.} O-O {[%emt 0:00:20]} 8. Be2 {[%emt 0:02:38]} h6 {[%emt 0:00:48]} 9. Bh4 {[%emt 0:00:30] The position is equal.} Re8 {[%emt 0:01:03]} 10. O-O {[%emt 0:00:48] [#]} a5 $146 {[%emt 0:02:02]} ({Predecessor:} 10... Nc6 11. Nxc6 bxc6 12. Bf3 Bd7 13. b4 g5 14. Bg3 h5 15. h4 Ng4 16. Rc1 gxh4 {0-1 (29) Raetsky,A (2459)-Glek,I (2534) Switzerland 2005}) 11. Qc2 {[%emt 0:08:40]} Nc6 {[%emt 0:01:07]} 12. Nxc6 {[%emt 0:05:34]} bxc6 {[%emt 0:00:06]} 13. Rad1 {[%emt 0:44:33]} Bd7 {[%emt 0:00:47]} 14. c5 {[%emt 0:18:00]} d5 {[%emt 0:01:03]} 15. Bd3 {[%emt 0:00:53]} (15. e4 {is more complex.} Qe7 16. exd5 Qxc5 17. dxc6 Bxc6 18. Rd2) 15... Qe7 {[%emt 0:01:22]} 16. Na4 {[%emt 0:02:58]} Bc8 {[%emt 0:05:58]} 17. Rfe1 {[%emt 0:02:28]} g5 {[%emt 0:02:36]} 18. Bg3 {[%emt 0:00:21]} Ba6 {[%emt 0:01:15]} 19. Bxa6 {[%emt 0:01:04]} Rxa6 {[%emt 0:00:05]} 20. f3 {[%emt 0:00:21]} Ra7 {[%emt 0:00:36]} 21. b3 {[%emt 0:01:11]} Rb7 {[%emt 0:00:37]} 22. Bf2 {[%emt 0:00:54]} (22. Qd3 $5 {[%cal Rd3a6]}) 22... Qe6 {[%emt 0:01:24]} 23. Qd2 {[%emt 0:00:42]} Rb4 {[%emt 0:00:22]} 24. a3 $2 {[%emt 0:00:53]} (24. Nb2 $11) 24... Rb5 $2 {[%emt 0:00:42]} ({Black should try} 24... Rxb3 $19 {And now ...Reb8 would win.} 25. Qa2 Reb8) 25. b4 {[%emt 0:00:33]} axb4 {[%emt 0:00:13]} 26. axb4 {[%emt 0:00:04]} Reb8 {[%emt 0:00:59]} (26... g4 {seems wilder.} 27. Nc3 Rxb4 28. e4 gxf3 29. Nxd5 Rbb8) 27. Rb1 {[%emt 0:00:19]} Nd7 {[%emt 0:02:11]} (27... Qc8 $17 28. Bg3 Qa6) 28. e4 $15 {[%emt 0:00:42]} dxe4 {[%emt 0:03:45]} 29. Rxe4 {[%emt 0:00:29]} Qd5 {[%emt 0:00:11] [#]} (29... Qf5 $15 {keeps the upper hand.}) 30. Qe2 {[%emt 0:00:40]} (30. Qc2 $1 $16 {Hoping for Rd1.} Be5 31. Rd1) 30... Nf8 {[%emt 0:02:32]} 31. Rc4 {[%emt 0:00:39]} Qf5 $36 {[%emt 0:00:41][%mdl 2048] Black is pushing.} 32. Qe4 {[%emt 0:00:30]} ({White should play} 32. Re4 $15) 32... Qxe4 $17 {[%emt 0:00:11]} 33. Rxe4 {[%emt 0:00:08]} Ne6 {[%emt 0:00:40]} (33... Ra8 $17 34. Nb2 f5) 34. g3 $15 {[%emt 0:00:48]} Ra8 {[%emt 0:00:20]} 35. Nb2 {[%emt 0:00:24]} Ra3 {[%emt 0:00:08] [#] aiming for ...Rb3.} 36. Nc4 $1 {[%emt 0:00:44]} Rxf3 {[%emt 0:00:11]} (36... Ra4 $15) 37. Ne5 {[%emt 0:00:41]} (37. Na5 $1 $11) 37... Bxe5 $17 {[%emt 0:00:19]} 38. Rxe5 {[%emt 0:00:06]} Ra3 {[%emt 0:01:59]} 39. Re4 {[%emt 0:00:34]} h5 {[%emt 0:00:58]} 40. h3 {[%emt 0:00:37]} ({Better is} 40. Bd4) 40... Kg7 {[%emt 0:00:44]} 41. Kg2 {[%emt 0:30:25]} Ra2 {[%emt 0:40:42][%cal Oe6c5] Black is clearly better.} 42. Kg1 {[%emt 0:00:38]} Rb8 {[%emt 0:00:08]} 43. Rf1 {[%emt 0:00:00]} Kg6 {[%emt 0:00:00]} 44. Rd1 {[%emt 0:00:00]} (44. h4 $17) 44... Rb2 $19 {[%emt 0:00:00]} 45. Be1 {[%emt 0:00:00]} Ra8 {[%emt 0:00:00] Weighted Error Value: White=0.36/Black=0.26 (precise)} 0-1

[Event "Stare Mesto Open-A 2022"]
[Site "Stare Mesto"]
[Date "2022.08.12"]
[Round "1.3"]
[White "Szotkowski, Jakub"]
[Black "Knotek, Josef"]
[Result "1-0"]
[ECO "A46"]
[WhiteElo "2344"]
[BlackElo "1945"]
[Annotator "TA"]
[PlyCount "69"]
[EventDate "2022.08.12"]
[EventType "swiss"]
[EventCountry "CZE"]
[SourceTitle "playchess.com"]
[Source "ChessBase"]
[SourceQuality "1"]
[TimeControl "40/5400+30:1800+30"]

{[%evp 17,69,54,75,85,87,36,55,11,0,0,19,-27,-36,-25,-29,-136,-106,-302,-301,-281,71,95,122,19,134,141,116,131,129,109,115,102,114,0,0,0,95,61,398,451,450,432,6145,2552,12833,12829,12824,12200,12825,6141,12836,12826,29992,29993]} 1. d4 Nf6 {[%emt 0:00:20]} 2. Nf3 {[%emt 0:00:25]} d5 {[%emt 0:00:21]} 3. c4 {[%emt 0:00:16]} g6 {[%emt 0:00:29]} 4. cxd5 {[%emt 0:02:14]} Nxd5 {[%emt 0:00:30]} 5. e4 {[%emt 0:00:53]} Nb6 {[%emt 0:00:28]} 6. h3 {[%emt 0:03:40]} Bg7 7. Nc3 O-O {[%emt 0:03:32]} 8. Be2 {[%emt 0:01:29] 8.Be3 gains popularity.} Nc6 {[%emt 0:01:24]} 9. Be3 {[%emt 0:09:17]} e5 {[%emt 0:04:00][%cal Re5d4]} 10. d5 {[%emt 0:00:38] D70: Grünfeld: Unusual White 3rd moves (met by ...d5).} Ne7 {[%emt 0:03:01][%cal Bc6e7,Be7f5,Bf5d4][%mdl 32]} 11. Qb3 {[%emt 0:05:02]} (11. a4 $16) 11... c6 $14 {[%emt 0:04:10][%cal Rc6d5]} 12. Rd1 {[%emt 0:05:02] White is slightly better.} (12. d6 $5 Qxd6 13. Rd1 $16) 12... cxd5 {[%emt 0:00:43]} 13. exd5 {[%emt 0:00:10]} Nf5 {[%emt 0:06:31]} 14. Bc5 {[%emt 0:15:25]} (14. O-O {is more appropriate.}) 14... Re8 $11 {[%emt 0:03:55] aiming for ...Nd7.} 15. O-O {[%emt 0:10:14]} Nd7 {[%emt 0:02:03] [#]} 16. Ba3 $146 {[%emt 0:05:10]} (16. Be3 $11 {remains equal.}) ({Predecessor:} 16. Ne4 Nxc5 17. Nxc5 e4 18. Ne6 fxe6 19. dxe6 Qb6 20. Qa4 Bxe6 21. Ng5 Kh8 22. Bc4 Bxc4 23. Qxc4 {0-1 (31) Herrmann,L-Plater,K Sopot 1951}) 16... Nd4 $1 $17 {[%emt 0:02:11]} 17. Qc4 {[%emt 0:05:19]} (17. Qa4 $17 {was forced.}) 17... b5 $19 {[%emt 0:04:31]} 18. Nxb5 {[%emt 0:10:37][%cal Rf3d4]} Ba6 $2 {[%emt 0:03:27]} (18... Nb6 $19 19. Rxd4 (19. Qd3 $2 e4 $19) 19... Nxc4 20. Rxc4 e4) 19. Nfxd4 $16 {[%emt 0:02:26]} exd4 {[%emt 0:00:15] [#]} 20. Qc6 {[%emt 0:01:01]} (20. Qa4 $1 $16 {[%cal Ra4a6]}) 20... Rxe2 {[%emt 0:07:52]} (20... Nb6 $11 21. Bd3 Rc8) 21. Qxa6 {[%emt 0:00:18][%cal Ob5c7]} d3 {[%emt 0:08:24]} 22. Rxd3 {[%emt 0:11:17]} Bxb2 {[%emt 0:02:11]} 23. Re3 $36 {[%emt 0:04:04][%mdl 2048] White is in control.} Rxe3 {[%emt 0:04:23]} 24. fxe3 {[%emt 0:00:04]} Be5 {[%emt 0:01:04] [#]} 25. d6 {[%emt 0:03:36]} (25. Nd4 $1 $16) 25... Qg5 $11 {[%emt 0:01:33]} 26. Rf3 {[%emt 0:01:37] Strongly threatening Qc6. Active counter play!} Rb8 {[%emt 0:07:15]} (26... Qh4 $11 27. Nd4 Qe1+ 28. Qf1 Qc3) 27. Qxa7 {[%emt 0:00:09]} Rxb5 $4 {[%emt 0:02:14][%mdl 8192]} ({Better is} 27... Qd8 $14 28. Qc7 Qe8) 28. Qxd7 $18 {[%emt 0:00:03] Really sharp!} Rb1+ {[%emt 0:01:22]} 29. Kf2 {[%emt 0:00:06][%cal Bg1f2,Bf2g2,Bg2g3,Bg3h2][%mdl 32]} Qh4+ {[%emt 0:03:17]} (29... Bg3+ $142 30. Rxg3 Qa5) 30. g3 {[%emt 0:00:06]} Bxg3+ {[%emt 0:01:01]} 31. Kg2 {[%emt 0:03:31]} Qc4 {[%emt 0:04:52]} 32. Qe8+ {[%emt 0:00:08]} Kg7 {[%emt 0:00:08]} 33. Kxg3 {[%emt 0:01:31] d7 would kill now.} (33. d7 {gets mated.} Qc2+ 34. Kxg3 Rg1+ 35. Kh4 g5+ 36. Kh5 Qg6#) 33... Rg1+ {[%emt 0:05:53]} 34. Kh2 {[%emt 0:00:22]} Rg5 {[%emt 0:06:13] [#]} 35. Rxf7+ $3 {[%emt 0:00:11] Never resign too early!  Weighted Error Value: White=0.58/Black=0.88} 1-0

[Event "Stare Mesto Open-A 2022"]
[Site "Stare Mesto"]
[Date "2022.08.12"]
[Round "1.4"]
[White "Lang, Simon"]
[Black "Sramek, Vojtech"]
[Result "0-1"]
[ECO "B76"]
[WhiteElo "1942"]
[BlackElo "2249"]
[Annotator "TA"]
[PlyCount "52"]
[EventDate "2022.08.12"]
[EventType "swiss"]
[EventCountry "CZE"]
[SourceTitle "playchess.com"]
[Source "ChessBase"]
[SourceQuality "1"]
[TimeControl "40/5400+30:1800+30"]

{[%evp 23,52,35,44,0,0,0,0,0,0,0,0,0,0,0,8,16,12,17,24,-677,-619,-5995,-5932,-5118,-5102,-5002,-4998,-1817,-2323,-1366,-971]} 1. e4 c5 {[%emt 0:00:09]} 2. Nf3 {[%emt 0:01:34]} d6 {[%emt 0:00:08]} 3. d4 {[%emt 0:01:03]} cxd4 {[%emt 0:00:07]} 4. Nxd4 {[%emt 0:01:07]} Nf6 {[%emt 0:00:08]} 5. Nc3 {[%emt 0:01:12]} g6 {[%emt 0:00:07]} 6. Be3 {[%emt 0:01:21]} Bg7 {[%emt 0:00:13]} 7. f3 {[%emt 0:01:53]} O-O {[%emt 0:00:10]} 8. Bc4 {[%emt 0:01:30]} Nc6 {[%emt 0:00:08]} 9. Bb3 {[%emt 0:01:08]} Bd7 {[%emt 0:00:11]} 10. Qd2 {[%emt 0:01:19]} Rc8 {[%emt 0:02:08]} 11. O-O-O {[%emt 0:01:48]} Nxd4 $1 {[%emt 0:00:14][%mdl 4] now scores much better than the old 11...Ne5.} 12. Bxd4 {[%emt 0:02:28]} b5 $1 {[%emt 0:00:26]} 13. h4 {[%emt 0:02:01] h5 is the strong threat. B78: Sicilian Dragon: Yugoslav Attack, 9 Bc4 Bd7 10 0-0-0 Rc8.} a5 $1 {[%emt 0:00:14] [#] White must now prevent ...a4.} 14. a3 {[%emt 0:01:56][%cal Oh4h5]} b4 $1 {[%emt 0:44:02]} 15. axb4 {[%emt 0:03:27] The position is equal.} axb4 {[%emt 0:00:05]} 16. Nd5 {[%emt 0:01:59]} Nxd5 {[%emt 0:00:58]} 17. Bxg7 {[%emt 0:04:10]} ({Don't play} 17. Bxd5 Qa5 18. b3 Bxd4 19. Qxd4 Rc3 $19) 17... Kxg7 $40 {[%emt 0:00:12][%mdl 128] Black attacks.} 18. exd5 {[%emt 0:00:46]} Qa5 {[%emt 0:04:25][%cal Ra5a1]} 19. Qd4+ {[%emt 0:02:14]} Kg8 {[%emt 0:02:14]} 20. h5 {[%emt 0:40:28] And now hxg6 would win.} Bf5 {[%emt 0:01:57][%cal Of5c2] Strongly threatening ...Bxc2!} 21. g4 $2 {[%emt 0:02:08][%mdl 8192] [#] White does not recover from this.} (21. Kd2 $11) 21... Bxc2 $1 $19 {[%emt 0:02:19][%mdl 512] [#] Black is clearly winning.} 22. Bc4 $146 {[%emt 0:00:49][%cal Oh5h6] Threatens to win with h6!} (22. Bxc2 b3) ({Predecessor:} 22. Bxc2 b3 23. hxg6 Rxc2+ 24. Kb1 Qa2# {0-1 (24) Linke,M-Schwellnus,G freechess.de 2014}) 22... Bb3 {[%emt 0:03:27]} 23. Kd2 {[%emt 0:00:36]} Rxc4 {[%emt 0:02:21]} 24. Qe3 {[%emt 0:00:12]} Qxd5+ {[%emt 0:00:37]} 25. Ke2 {[%emt 0:00:09]} Bxd1+ {[%emt 0:00:12]} 26. Rxd1 {[%emt 0:00:08]} Qe5 {[%emt 0:00:09] Weighted Error Value: White=1.02/Black=0.01 (flawless)} 0-1

[Event "Stare Mesto Open-A 2022"]
[Site "Stare Mesto"]
[Date "2022.08.12"]
[Round "1.5"]
[White "Babula, Vlastimil"]
[Black "Balazec, Ludovit"]
[Result "1-0"]
[ECO "B90"]
[WhiteElo "2571"]
[BlackElo "1930"]
[Annotator "TA"]
[PlyCount "97"]
[EventDate "2022.08.12"]
[EventType "swiss"]
[EventCountry "CZE"]
[SourceTitle "playchess.com"]
[Source "ChessBase"]
[SourceQuality "1"]
[TimeControl "40/5400+30:1800+30"]

{[%evp 15,97,-14,-9,-22,30,28,45,3,21,0,42,0,2,-58,-62,-146,-120,-112,315,329,535,537,514,481,536,506,447,177,188,175,375,279,349,340,344,333,353,370,382,379,372,363,360,378,405,403,395,391,487,487,493,482,506,504,505,500,529,516,514,514,507,506,524,529,504,477,569,560,597,590,557,526,700,540,794,786,29974,29973,1467,1217,29989,29990,29990,29990]} 1. e4 {[%emt 0:00:06]} c5 {[%emt 0:00:02]} 2. Nf3 {[%emt 0:00:16]} d6 {[%emt 0:00:12]} 3. d4 {[%emt 0:00:10]} cxd4 {[%emt 0:00:05]} 4. Nxd4 {[%emt 0:00:04]} Nf6 {[%emt 0:00:06]} 5. Nc3 {[%emt 0:00:10]} a6 {[%emt 0:00:04]} 6. Bc4 {[%emt 0:01:14]} e6 {[%emt 0:00:47]} 7. Bb3 {[%emt 0:00:07]} Nbd7 {[%emt 0:02:31]} 8. g4 {[%emt 0:01:40][%cal Bg2g4,Bg4g5][%mdl 32]} Nc5 {[%emt 0:00:14]} 9. Qe2 {[%emt 0:05:28] B86: Sicilian Scheveningen/Najdorf: 6 Bc4, without early ...b5.} Be7 {[%emt 0:02:26]} (9... b5 $142) 10. g5 $11 {[%emt 0:01:55]} Nfd7 {[%emt 0:00:18]} 11. Rg1 {[%emt 0:01:15] White is slightly better.} O-O {[%emt 0:02:53] [#]} 12. Be3 $146 {[%emt 0:05:18]} ({Predecessor:} 12. f4 Nxb3 13. axb3 Re8 14. Be3 b5 15. Ncxb5 Bb7 16. Nc3 Nc5 17. Bd2 Qb6 18. Na4 Nxa4 19. Rxa4 {0-1 (35) Tiemann,H-Bubis,A ICCF corr 1986}) 12... Qc7 {[%emt 0:01:41]} 13. O-O-O {[%emt 0:03:48]} (13. f4 $5 {[%cal Rf4f5]}) 13... b5 {[%emt 0:00:19]} 14. Qh5 {[%emt 0:10:51]} (14. f4 $11) 14... Bb7 $15 {[%emt 0:15:05] White must now prevent ...b4.} 15. Rg3 {[%emt 0:06:52]} ({White should play} 15. Rg4 $15) 15... Nxb3+ {[%emt 0:00:28]} (15... Bxe4 $2 16. Nxe4 g6 17. Qh6 $1 Nxe4 18. Rh3 Nxg5 19. Bxg5 Bxg5+ 20. Qxg5 $18) 16. axb3 {[%emt 0:00:32] Strongly threatening Rh3.} g6 $2 {[%emt 0:01:40][%mdl 8192] A mistake that costs the game.} (16... Rfc8 $1 $17 {and life is bright. And now ...b4 would win.} 17. b4 Nf8) 17. Qh6 $18 {[%emt 0:02:15] Intending Rh3 and mate.} Rfc8 $2 {[%emt 0:00:31]} (17... Rfe8 {was necessary.} 18. Rh3 Nf8) 18. Rh3 {[%emt 0:06:01]} Nf8 {[%emt 0:00:06]} 19. f4 {[%emt 0:05:48] Hoping for f5.} Bxg5 {[%emt 0:33:32]} (19... b4 $2 20. f5 $1 (20. Na2 $2 Bxe4 21. Rd2 a5 $19) 20... Bxg5 21. Bxg5) 20. Qxg5 {[%emt 0:12:43] f5 is the strong threat.} b4 {[%emt 0:01:43] [#]} 21. Na4 {[%emt 0:10:35]} (21. Nd5 $1 {[%mdl 512]} exd5 22. f5 (22. exd5 Qd8 $16)) 21... Bxe4 {[%emt 0:01:08]} 22. Rd2 {[%emt 0:03:04]} f5 $2 {[%emt 0:11:58]} (22... Re8 23. Qh6 Rab8) 23. Qf6 {[%emt 0:01:35]} Re8 {[%emt 0:04:04]} 24. Nf3 {[%emt 0:01:40]} Bxf3 {[%emt 0:05:53]} 25. Rxf3 {[%emt 0:00:14]} Nd7 {[%emt 0:01:26]} 26. Qd4 {[%emt 0:01:52][%csl LRb4,LRd6]} d5 {[%emt 0:02:52]} 27. Nb6 {[%emt 0:02:01]} Nxb6 {[%emt 0:02:13]} 28. Qxb6 {[%emt 0:00:05]} Qxb6 {[%emt 0:01:38]} 29. Bxb6 {[%emt 0:00:02]} a5 {[%emt 0:00:27]} 30. Bd4 {[%emt 0:00:29]} Kf7 {[%emt 0:01:37]} 31. h4 {[%emt 0:00:13]} h5 {[%emt 0:00:08]} 32. Be5 {[%emt 0:00:57]} Ra6 {[%emt 0:00:43]} 33. Kb1 {[%emt 0:01:07]} Rc6 {[%emt 0:00:22]} 34. Rg3 {[%emt 0:01:12]} Rec8 {[%emt 0:00:42]} 35. Rdg2 {[%emt 0:00:56]} Rg8 {[%emt 0:00:08]} 36. Kc1 {[%emt 0:00:59]} Rcc8 {[%emt 0:00:34]} 37. Kd2 {[%emt 0:00:08]} Rc6 {[%emt 0:00:20]} 38. Kd3 {[%emt 0:00:05]} Rcc8 {[%emt 0:00:37]} 39. Rg1 {[%emt 0:00:36]} Rc5 {[%emt 0:01:51]} 40. R3g2 {[%emt 0:00:09]} Rc6 {[%emt 0:02:16]} 41. Ra1 {[%emt 0:30:08]} Ra8 {[%emt 0:30:28]} 42. Ra4 {[%emt 0:01:10]} Rc5 {[%emt 0:03:31]} 43. Rg1 {[%emt 0:00:25]} Rac8 {[%emt 0:00:00]} 44. Rc1 {[%emt 0:00:00]} R8c6 {[%emt 0:00:00]} 45. Rca1 {[%emt 0:00:00]} Rxc2 {[%emt 0:00:00]} 46. Rxa5 {[%emt 0:00:00]} Rc1 {[%emt 0:00:00]} 47. Ra7+ {[%emt 0:00:00]} Kf8 {[%emt 0:00:00]} 48. R1a4 {[%emt 0:00:00]} Rc8 {[%emt 0:00:00]} 49. Rh7 {[%emt 0:00:00] Weighted Error Value: White=0.25 (precise) /Black=0.80} 1-0